Workbook

Sheet Sheet1
M1: =IF($S$1=1,"1","") -> 1 | N1: 4 | P1: =IFERROR(IF(E1>0,"e",IF(F1>0,"F",IF(G1>0,"G",IF(H1>0,"H",IF(I1>0,"J",IF(J1>0,"J",IF(K1>0,"K",""))))))),"") ->  | S1: 1
A2: اليوم الأول | B2: 123 | G2: 1 | H2: محرم | I2: 1437 | M2: =IF($S$1=1,"1","") -> 1 | P2: =IFERROR(IF(E2>0,"e",IF(F2>0,"F",IF(G2>0,"G",IF(H2>0,"H",IF(I2>0,"J",IF(J2>0,"J",IF(K2>0,"K",""))))))),"") -> G
A3: م | B3: اسم العميل | C3: الفرع | D3: العنوان | E3: مبلغ1 | F3: مبلغ2 | G3: مبلغ3 | H3: مبلغ4 | I3: مبلغ5 | J3: مبلغ6 | K3: مبلغ7 | L3: اجمالي المبالغ | M3: 1 | P3: =IF(L3>0,"اظهار",IF(L3<=0,"")) -> اظهار
A4: 1 | B4: عميل1 | L4: =SUM(E4:K4) -> 0 | M4: 1 | P4: =IF(L4>0,"اظهار",IF(L4<=0,"")) -> 
A5: 2 | B5: عميل 2 | L5: =SUM(E5:K5) -> 0 | M5: 1 | T5: يجب عليك كتابة الرقم المراد طباعتة
A6: 3 | B6: عميل3 | E6: 20 | F6: 10 | G6: 50 | H6: 60 | I6: 30 | J6: 33 | K6: 500 | L6: =SUM(E6:K6) -> 703 | M6: 1 | P6: اظهار
A7: 4 | B7: عميل4 | L7: =SUM(E7:K7) -> 0 | M7: 1
A8: 5 | B8: عميل5 | L8: 0 | M8: 1
A9: 6 | B9: عميل6 | L9: 0 | M9: 1
A10: 7 | B10: عميل7 | L10: 0 | M10: 1
A11: 8 | B11: عميل8 | L11: 0 | M11: 1
A12: 9 | B12: عميل9 | L12: 0 | M12: 1
A13: 10 | B13: عميل10 | L13: 0 | M13: 1
A14: 11 | B14: عميل11 | E14: 40 | F14: 55 | G14: 88 | H14: 77 | I14: 99 | J14: 400 | K14: 70 | L14: =SUM(E14:K14) -> 829 | M14: 1 | P14: اظهار
A15: 12 | B15: عميل12 | L15: =SUM(E15:K15) -> 0 | M15: 1
A16: 13 | B16: عميل13 | L16: 0 | M16: 1
A17: 14 | B17: عميل14 | L17: 0 | M17: 1
A18: 15 | B18: عميل15 | L18: 0 | M18: 1
A19: 16 | B19: عميل16 | K19: 55 | L19: 55 | M19: 1 | P19: اظهار
A20: 17 | B20: عميل17 | L20: 0 | M20: 1
A21: 18 | B21: عميل18 | L21: 0 | M21: 1
A22: 19 | B22: عميل19 | L22: 0 | M22: 1
A23: 20 | B23: عميل20 | E23: 94 | F23: 6 | G23: 99 | H23: 88 | I23: 5 | J23: 125 | K23: 111 | L23: 528 | M23: 1 | P23: اظهار
A24: 21 | B24: عميل21 | L24: 0 | M24: 1
A25: 22 | B25: عميل22 | L25: 0 | M25: 1
A26: الإجمالي النقدي | E26: =SUM(E4:E25) -> 154 | F26: =SUM(F4:F25) -> 71 | G26: 237 | H26: 225 | I26: 134 | J26: 558 | K26: 736 | L26: =SUM(L4:L25) -> 2115 | M26: 1 | P26: اظهار
A27: الشيكات | L27: =SUM(E27:K27) -> 0 | M27: =IF($S$1=1,"1","") -> 1
A29: اليوم الثاني | G29: 2 | H29: محرم | I29: 1437 | M29: =IF($S$1=2,"2","") -> 
A30: م | B30: اسم العميل | C30: الفرع | D30: العنوان | E30: مبلغ1 | F30: مبلغ2 | G30: مبلغ3 | H30: مبلغ4 | I30: مبلغ5 | J30: مبلغ6 | K30: مبلغ7 | L30: اجمالي المبالغ | P30: اظهار
A31: 1 | B31: عميل1 | E31: 15 | L31: =SUM(E31:K31) -> 15 | P31: اظهار
A32: 2 | B32: عميل 2 | L32: =SUM(E32:K32) -> 0
A33: 3 | B33: عميل3 | E33: 20 | H33: 60 | L33: 80 | P33: اظهار
A34: 4 | B34: عميل4 | L34: 0
A35: 5 | B35: عميل5 | E35: 30 | I35: 33 | K35: 500 | L35: 563 | P35: اظهار
A36: 6 | B36: عميل6 | L36: 0
A37: 7 | B37: عميل7 | E37: 40 | F37: 10 | G37: 50 | L37: 100 | P37: اظهار
A38: 8 | B38: عميل8 | J38: 400 | L38: 400 | P38: اظهار
A39: 9 | B39: عميل9 | L39: 0
A40: 10 | B40: عميل10 | F40: 99 | L40: 99 | P40: اظهار
A41: 11 | B41: عميل11 | G41: 88 | H41: 77 | L41: 165 | P41: اظهار
A42: 12 | B42: عميل12 | L42: 0
A43: 13 | B43: عميل13 | H43: 70 | L43: 70 | P43: اظهار
A44: 14 | B44: عميل14 | L44: 0
A45: 15 | B45: عميل15 | L45: 0
A46: 16 | B46: عميل16 | E46: 90 | H46: 125 | L46: 215 | P46: اظهار
A47: 17 | B47: عميل17 | H47: 111 | L47: 111 | P47: اظهار
A48: 18 | B48: عميل18 | L48: 0
A49: 19 | B49: عميل19 | L49: 0
A50: 20 | B50: عميل20 | L50: 0
A51: 21 | B51: عميل21 | L51: 0
A52: 22 | B52: عميل22 | L52: 0
A53: الإجمالي النقدي | E53: =SUM(E31:E52) -> 195 | F53: =SUM(F31:F52) -> 109 | G53: =SUM(G31:G52) -> 138 | H53: =SUM(H31:H52) -> 443 | I53: =SUM(I31:I52) -> 33 | J53: =SUM(J31:J52) -> 400 | K53: =SUM(K31:K52) -> 500 | L53: =SUM(L31:L52) -> 1818 | P53: اظهار
A54: الشيكات | H54: 500 | L54: =SUM(E54:K54) -> 500 | P54: اظهار
A56: اليوم الثالث | F56: السبت | G56: 3 | H56: محرم | I56: 1437 | M56: =IF($S$1=3,"3","") -> 
A57: م | B57: اسم العميل | C57: الفرع | D57: العنوان | E57: مبلغ1 | F57: مبلغ2 | G57: مبلغ3 | H57: مبلغ4 | I57: مبلغ5 | J57: مبلغ6 | K57: مبلغ7 | L57: اجمالي المبالغ | P57: اظهار
A58: 1 | B58: عميل1 | E58: 15 | L58: =SUM(E58:K58) -> 15 | P58: اظهار
A59: 2 | B59: عميل 2 | L59: =SUM(E59:K59) -> 0
A60: 3 | B60: عميل3 | E60: 20 | H60: 60 | L60: 80 | P60: اظهار
A61: 4 | B61: عميل4 | L61: 0
A62: 5 | B62: عميل5 | E62: 30 | I62: 33 | K62: 500 | L62: 563 | P62: اظهار
A63: 6 | B63: عميل6 | L63: 0
A64: 7 | B64: عميل7 | E64: 40 | F64: 10 | G64: 50 | L64: 100 | P64: اظهار
A65: 8 | B65: عميل8 | J65: 400 | L65: 400 | P65: اظهار
A66: 9 | B66: عميل9 | L66: 0
A67: 10 | B67: عميل10 | F67: 99 | L67: 99 | P67: اظهار
A68: 11 | B68: عميل11 | G68: 88 | H68: 77 | L68: 165 | P68: =IF(L68>0,"اظهار",IF(L68<=0,"")) -> اظهار
A69: 12 | B69: عميل12 | L69: 0
A70: 13 | B70: عميل13 | H70: 70 | L70: 70 | P70: اظهار
A71: 14 | B71: عميل14 | L71: 0
A72: 15 | B72: عميل15 | L72: 0
A73: 16 | B73: عميل16 | E73: 90 | H73: 125 | L73: 215 | P73: اظهار
A74: 17 | B74: عميل17 | H74: 111 | L74: 111 | P74: اظهار
A75: 18 | B75: عميل18 | L75: 0
A76: 19 | B76: عميل19 | L76: 0
A77: 20 | B77: عميل20 | L77: 0
A78: 21 | B78: عميل21 | L78: 0
A79: 22 | B79: عميل22 | L79: 0
A80: الإجمالي النقدي | E80: =SUM(E58:E79) -> 195 | F80: =SUM(F58:F79) -> 109 | G80: =SUM(G58:G79) -> 138 | H80: =SUM(H58:H79) -> 443 | I80: =SUM(I58:I79) -> 33 | J80: =SUM(J58:J79) -> 400 | K80: =SUM(K58:K79) -> 500 | L80: =SUM(L58:L79) -> 1818 | P80: اظهار
A81: الشيكات | H81: 100 | L81: =SUM(E81:K81) -> 100 | P81: اظهار
A83: اليوم الرابع | F83: السبت | G83: 4 | H83: محرم | I83: 1437 | M83: =IF($S$1=4,"4","") -> 
A84: م | B84: اسم العميل | C84: الفرع | D84: العنوان | E84: مبلغ1 | F84: مبلغ2 | G84: مبلغ3 | H84: مبلغ4 | I84: مبلغ5 | J84: مبلغ6 | K84: مبلغ7 | L84: اجمالي المبالغ | P84: اظهار
A85: 1 | B85: عميل1 | E85: 15 | L85: =SUM(E85:K85) -> 15 | P85: اظهار
A86: 2 | B86: عميل 2 | L86: =SUM(E86:K86) -> 0
A87: 3 | B87: عميل3 | E87: 20 | H87: 60 | L87: 80 | P87: اظهار
A88: 4 | B88: عميل4 | L88: 0
A89: 5 | B89: عميل5 | E89: 30 | I89: 33 | K89: 500 | L89: 563 | P89: اظهار
A90: 6 | B90: عميل6 | L90: 0
A91: 7 | B91: عميل7 | E91: 40 | F91: 10 | G91: 50 | L91: 100 | P91: اظهار
A92: 8 | B92: عميل8 | J92: 400 | L92: 400 | P92: اظهار
A93: 9 | B93: عميل9 | L93: 0
A94: 10 | B94: عميل10 | F94: 99 | L94: 99 | P94: اظهار
A95: 11 | B95: عميل11 | G95: 88 | H95: 77 | L95: 165 | P95: اظهار
A96: 12 | B96: عميل12 | L96: 0
A97: 13 | B97: عميل13 | H97: 70 | L97: 70 | P97: اظهار
A98: 14 | B98: عميل14 | L98: 0
A99: 15 | B99: عميل15 | L99: 0
A100: 16 | B100: عميل16 | E100: 90 | H100: 125 | L100: 215 | P100: اظهار
A101: 17 | B101: عميل17 | H101: 111 | L101: 111 | P101: اظهار
A102: 18 | B102: عميل18 | L102: 0
A103: 19 | B103: عميل19 | L103: 0
A104: 20 | B104: عميل20 | L104: 0
A105: 21 | B105: عميل21 | L105: 0
A106: 22 | B106: عميل22 | L106: 0
A107: الإجمالي النقدي | E107: =SUM(E85:E106) -> 195 | F107: =SUM(F85:F106) -> 109 | G107: =SUM(G85:G106) -> 138 | H107: =SUM(H85:H106) -> 443 | I107: =SUM(I85:I106) -> 33 | J107: =SUM(J85:J106) -> 400 | K107: =SUM(K85:K106) -> 500 | L107: =SUM(L85:L106) -> 1818 | P107: اظهار
A108: الشيكات | G108: 700 | H108: 0 | L108: =SUM(E108:K108) -> 700 | P108: اظهار
A110: اليوم الخامس | F110: السبت | G110: 5 | H110: محرم | I110: 1437 | M110: =IF($S$1=5,"5","") -> 
A111: م | B111: اسم العميل | C111: الفرع | D111: العنوان | E111: مبلغ1 | F111: مبلغ2 | G111: مبلغ3 | H111: مبلغ4 | I111: مبلغ5 | J111: مبلغ6 | K111: مبلغ7 | L111: اجمالي المبالغ | P111: اظهار
A112: 1 | B112: عميل1 | E112: 15 | L112: =SUM(E112:K112) -> 15 | P112: اظهار
A113: 2 | B113: عميل 2 | L113: =SUM(E113:K113) -> 0
A114: 3 | B114: عميل3 | E114: 20 | H114: 60 | L114: 80 | P114: اظهار
A115: 4 | B115: عميل4 | L115: 0
A116: 5 | B116: عميل5 | E116: 30 | I116: 33 | K116: 500 | L116: 563 | P116: اظهار
A117: 6 | B117: عميل6 | L117: 0
A118: 7 | B118: عميل7 | E118: 40 | F118: 10 | G118: 50 | L118: 100 | P118: اظهار
A119: 8 | B119: عميل8 | J119: 400 | L119: 400 | P119: اظهار
A120: 9 | B120: عميل9 | L120: 0
A121: 10 | B121: عميل10 | F121: 99 | L121: 99 | P121: اظهار
A122: 11 | B122: عميل11 | G122: 88 | H122: 77 | L122: 165 | P122: اظهار
A123: 12 | B123: عميل12 | L123: 0
A124: 13 | B124: عميل13 | H124: 70 | L124: 70 | P124: اظهار
A125: 14 | B125: عميل14 | L125: 0
A126: 15 | B126: عميل15 | L126: 0
A127: 16 | B127: عميل16 | E127: 90 | H127: 125 | L127: 215 | P127: اظهار
A128: 17 | B128: عميل17 | H128: 111 | L128: 111 | P128: اظهار
A129: 18 | B129: عميل18 | L129: 0
A130: 19 | B130: عميل19 | L130: 0
A131: 20 | B131: عميل20 | L131: 0
A132: 21 | B132: عميل21 | L132: 0 | P132: =IF(L132>0,"اظهار",IF(L132<=0,"")) -> 
A133: 22 | B133: عميل22 | L133: 0
A134: الإجمالي النقدي | E134: =SUM(E112:E133) -> 195 | F134: =SUM(F112:F133) -> 109 | G134: =SUM(G112:G133) -> 138 | H134: =SUM(H112:H133) -> 443 | I134: =SUM(I112:I133) -> 33 | J134: =SUM(J112:J133) -> 400 | K134: =SUM(K112:K133) -> 500 | L134: =SUM(L112:L133) -> 1818 | P134: اظهار
A135: الشيكات | E135: 900 | H135: 0 | L135: =SUM(E135:K135) -> 900 | P135: اظهار
P196: =IF(L196>0,"اظهار",IF(L196<=0,"")) -> 
